bitfinex/quotes_ETHUSD_20250822
["timestamp","ask_amount","ask_price","bid_price","bid_amount"]
[1755837089658,1.791,4299.6,4299.5,5.62175184]
[1755837089845,1.791,4299.6,4299.5,3.2959]
[1755837090262,1.791,4299.6,4299.5,5.62175184]
[1755837090463,1.791,4299.6,4299.5,3.0]
[1755837090866,1.791,4299.6,4299.5,5.32585184]
[1755837091139,1.791,4299.6,4299.5,5.62175184]
[1755837091340,1.791,4299.6,4299.5,6.32114584]
[1755837091568,1.791,4299.6,4299.5,7.18585285]
[1755837091937,2.15505106,4299.6,4299.5,6.88995285]
[1755837092578,0.36605106,4299.6,4299.5,7.18585285]
[1755837092784,0.36605106,4299.6,4299.5,7.84585285]
[1755837094175,0.36605106,4299.6,4299.5,7.54995285]
[1755837094551,0.36605106,4299.6,4299.5,5.22410101]
[1755837094949,0.36605106,4299.6,4299.5,7.54995285]
[1755837095280,0.36605106,4299.6,4299.5,5.22410101]
[1755837095488,0.36605106,4299.6,4299.5,7.54995285]
[1755837095789,0.002,4299.6,4299.5,7.84585285]
[1755837095988,0.002,4299.6,4299.5,7.54995285]
[1755837096188,0.3065,4299.6,4299.5,7.54995285]
[1755837096675,0.002,4299.6,4299.5,7.84585285]
[1755837097882,0.002,4299.6,4299.5,8.28545285]
[1755837098049,0.002,4299.6,4299.5,7.84585285]
[1755837099350,0.36602952,4299.6,4299.5,7.84585285]
[1755837107012,0.67662952,4299.6,4299.5,5.22410101]
[1755837107308,0.36602952,4299.6,4299.5,5.22410101]
[1755837107460,0.36602952,4299.6,4299.5,7.85625285]
[1755837107665,0.36602952,4299.6,4299.5,5.53040101]
[1755837107884,0.36602952,4299.6,4299.5,7.85625285]
[1755837110971,0.36602952,4299.6,4299.5,5.53040101]
[1755837111790,0.36602952,4299.6,4299.5,5.22410101]
[1755837111988,0.36602952,4299.6,4299.5,4.359394]
[1755837112192,0.002,4299.6,4299.5,4.359394]
[1755837113288,0.3126,4299.6,4299.5,4.359394]
[1755837113600,0.7712,4299.6,4299.5,4.359394]
[1755837114201,0.3126,4299.6,4299.5,3.699394]
[1755837114389,0.7712,4299.6,4299.5,3.699394]
[1755837115583,1.13526496,4299.6,4299.5,3.699394]
[1755837115783,0.7712,4299.6,4299.5,3.699394]
[1755837119149,1.13526427,4299.6,4299.5,3.699394]
[1755837119617,0.36606427,4299.6,4299.5,4.005694]
[1755837119783,0.36606427,4299.6,4299.5,4.6388645]
[1755837120615,0.36606427,4299.6,4299.5,6.96471634]
[1755837120811,0.36606427,4299.6,4299.5,7.41101634]
[1755837120980,0.36606427,4299.6,4299.5,5.0851645]
[1755837121395,0.36606427,4299.6,4299.5,4.6388645]
[1755837123523,0.36606427,4299.6,4299.5,8.07101634]
[1755837124287,0.36606427,4299.6,4299.5,7.62471634]
[1755837124719,0.36606427,4299.6,4299.5,4.9925645]
[1755837124906,0.67666427,4299.6,4299.5,4.9925645]
[1755837125814,0.36606427,4299.6,4299.5,4.9925645]
[1755837127528,0.67666427,4299.6,4299.5,4.9925645]
[1755837127700,0.67666427,4299.6,4299.5,7.31841634]
[1755837128025,0.36606427,4299.6,4299.5,7.62471634]
[1755837129053,0.002,4299.6,4299.5,5.2988645]
[1755837129716,0.002,4299.6,4299.5,7.62471634]
[1755837129921,0.002,4299.6,4299.5,4.9925645]
[1755837130121,0.7301,4299.6,4299.5,4.9925645]
[1755837130442,0.002,4299.6,4299.5,4.9925645]
[1755837130639,0.002,4299.6,4299.5,7.31841634]
[1755837130841,0.002,4299.6,4299.5,7.63351634]
[1755837132223,0.002,4299.6,4299.5,5.3076645]
[1755837132541,0.36604446,4299.6,4299.5,4.359394]
[1755837133340,0.65324446,4299.6,4299.5,3.699394]
[1755837133644,1.09414446,4299.6,4299.5,3.699394]
[1755837133954,1.09414446,4299.6,4299.5,3.0]
[1755837134190,1.09414446,4299.6,4299.5,3.653245]
[1755837134629,5.06214446,4299.6,4299.5,3.653245]
[1755837135402,1.09414446,4299.6,4299.5,3.653245]
[1755837135614,5.06214446,4299.6,4299.5,3.653245]
[1755837136415,5.06214446,4299.6,4299.5,3.0]
[1755837136710,1.09414446,4299.6,4299.5,3.0]
[1755837136913,4.6981,4299.6,4299.5,3.0]
[1755837137234,4.6971,4299.6,4299.5,3.0]
[1755837137442,4.6971,4299.6,4299.1,0.700463]
[1755837137631,1.81223707,4299.5,4299.1,0.001]
[1755837137806,0.2872,4299.2,4299.1,0.001]
[1755837138202,0.75133707,4299.2,4299.1,0.001]
[1755837140339,1.11547372,4299.2,4299.1,0.001]
[1755837142615,4.64057372,4299.2,4299.1,0.001]
[1755837142811,5.08147372,4299.2,4299.1,0.001]
[1755837143008,5.05823665,4299.2,4299.1,0.001]
[1755837143241,0.65133665,4299.2,4299.1,0.001]
[1755837143544,5.05923665,4299.2,4299.1,0.001]
[1755837147135,5.06123665,4299.2,4299.1,0.001]
[1755837150182,4.6971,4299.2,4299.1,0.001]
[1755837153298,5.06122722,4299.2,4299.1,0.001]
[1755837153954,5.06122722,4299.2,4299.1,0.095278]
[1755837155184,5.06122722,4299.2,4299.1,0.001]
[1755837155384,4.6971,4299.2,4299.1,0.001]
[1755837156077,4.6951,4299.2,4299.1,0.001]
[1755837156390,0.7301,4299.2,4299.1,0.001]
[1755837156598,0.2892,4299.2,4299.1,0.001]
[1755837156804,0.02523707,4299.2,4299.1,0.001]
[1755837157005,4.27743707,4299.2,4299.1,0.097278]
[1755837157899,4.71833707,4299.2,4299.1,0.097278]
[1755837158090,4.6951,4299.2,4299.1,0.097278]
[1755837158403,4.2542,4299.2,4299.1,0.097278]
[1755837158596,0.2892,4299.2,4299.1,0.097278]
[1755837158799,4.2532,4299.2,4299.1,0.097278]
[1755837159192,4.7079,4299.2,4299.1,0.097278]
[1755837160388,5.07204229,4299.2,4299.1,0.097278]
[1755837160588,4.33014229,4299.2,4299.1,0.097278]
[1755837160992,4.63834229,4299.2,4299.1,0.097278]
[1755837161706,4.33014229,4299.2,4299.1,0.097278]
[1755837161912,4.63834229,4299.2,4299.1,0.097278]
[1755837162212,5.09304229,4299.2,4299.1,0.097278]
[1755837163610,5.59515519,4299.2,4299.1,0.001]
[1755837163816,35.81307217,4299.2,4299.1,0.001]
[1755837164416,36.43978752,4299.2,4299.1,0.001]
[1755837164591,36.60383194,4299.2,4299.1,0.001]
[1755837164914,0.66,4299.1,4298.7,0.001]
[1755837165117,6.94338221,4298.8,4298.7,0.001]
[1755837165410,41.62641209,4298.8,4298.7,0.001]
[1755837165722,42.08111209,4298.8,4298.7,0.001]
[1755837167015,42.74111209,4298.8,4298.7,0.001]
[1755837167218,30.66,4298.7,4298.3,0.001]
[1755837167389,7.60338221,4298.4,4298.3,0.001]
[1755837167589,42.28641209,4298.4,4298.3,0.001]
[1755837167788,42.74111209,4298.4,4298.3,0.001]
[1755837169018,42.85907944,4298.4,4298.3,0.001]
[1755837170420,12.64116246,4298.4,4298.3,0.001]
[1755837170916,43.00544307,4298.4,4298.3,0.001]
[1755837171120,42.64116246,4298.4,4298.3,0.001]
[1755837172685,43.00544293,4298.4,4298.3,0.001]
[1755837172997,0.66,4298.3,4297.8,0.021]
[1755837173317,39.15555355,4298.3,4297.8,0.021]
[1755837173517,39.13231648,4298.3,4297.8,0.021]
[1755837174192,42.8780129,4298.3,4297.8,0.021]
[1755837174391,43.09522718,4298.3,4297.8,0.021]
[1755837175704,50.09522718,4298.3,4297.8,0.021]
[1755837175901,48.2612,4298.3,4297.8,0.021]
[1755837176426,14.2982,4298.3,4297.8,0.021]
[1755837176627,17.953,4298.3,4298.2,0.3008]
[1755837176998,13.99,4298.3,4298.2,0.859134]
[1755837177524,17.953,4298.3,4298.2,0.859134]
[1755837178316,17.953,4298.3,4298.2,1.323134]
[1755837178511,17.953,4298.3,4298.2,0.859134]
[1755837178913,18.31726254,4298.3,4298.2,0.859134]
[1755837179229,11.32726254,4298.3,4298.2,0.859134]
[1755837179430,17.96244475,4298.3,4298.2,0.859134]
[1755837179730,10.96244475,4298.3,4298.2,0.859134]
[1755837181629,10.96144475,4298.3,4298.2,0.859134]
[1755837182042,0.36426254,4298.3,4298.2,1.323134]
[1755837182395,4.32626254,4298.3,4298.2,1.323134]
[1755837183219,0.36426254,4298.3,4298.2,1.323134]
[1755837183421,4.32626254,4298.3,4298.2,1.323134]
[1755837183740,4.32626254,4298.3,4298.2,3.7820027]
[1755837183952,4.32626254,4298.3,4298.2,6.7820027]
[1755837184096,0.36426254,4298.3,4298.2,6.7820027]
[1755837184427,0.36426254,4298.3,4298.2,7.4420027]
[1755837185926,0.02523707,4299.2,4298.2,7.4420027]
[1755837185927,3.961,4298.9,4298.6,2.3262937]
[1755837186130,3.961,4299.1,4298.8,3.2998]
[1755837186446,3.963,4299.2,4299.0,3.0]
[1755837186749,0.002,4299.2,4299.1,13.40831113]
[1755837187029,0.002,4299.2,4299.1,13.38505045]
[1755837187230,0.002,4299.2,4299.1,14.9561726]
[1755837191723,0.002,4299.2,4299.1,16.7461726]
[1755837192233,0.002,4299.2,4299.1,20.7051726]
[1755837193126,0.002,4299.2,4299.1,20.7984076]
[1755837195105,0.002,4299.2,4299.1,16.8394076]
[1755837195334,0.002,4299.2,4299.1,20.7974076]
[1755837198935,0.002,4299.2,4299.1,20.97374898]
[1755837200349,0.002,4299.2,4299.1,23.42674898]
[1755837200662,0.002,4299.2,4299.1,20.97374898]
[1755837202651,0.002,4299.2,4299.1,25.26374898]
[1755837203021,0.002,4299.2,4299.1,21.30574898]
[1755837203356,0.002,4299.2,4299.1,25.26174898]
[1755837203572,0.002,4299.2,4299.1,18.62656677]
[1755837203869,0.002,4299.2,4299.1,14.20656677]
[1755837204028,0.002,4299.2,4299.1,15.16156677]
[1755837204354,0.002,4299.2,4299.1,13.54656677]
[1755837204563,0.002,4299.2,4299.1,17.50156677]
[1755837204720,0.002,4299.2,4299.1,18.16156677]
[1755837204920,0.002,4299.2,4299.1,18.61236677]
[1755837206755,0.002,4299.2,4299.1,18.16156677]
[1755837207756,0.002,4299.2,4299.1,14.20656677]
[1755837207963,0.002,4299.2,4299.1,18.16056677]
[1755837208456,0.002,4299.2,4299.1,14.20656677]
[1755837208658,0.7656,4299.2,4299.1,7.38564462]
[1755837208828,0.7656,4299.2,4299.1,11.33964462]
[1755837209025,0.7656,4299.2,4299.1,0.26957638]
[1755837209745,0.36608654,4299.2,4299.1,0.26957638]
[1755837210063,0.68018654,4299.2,4299.1,0.26957638]
[1755837210266,1.12968654,4299.2,4299.1,0.26957638]
[1755837210635,1.12968654,4299.2,4299.1,4.22357638]
[1755837210830,1.12968654,4299.2,4299.1,7.22357638]
[1755837211255,1.12968654,4299.2,4299.1,3.26957638]
[1755837211560,1.12968654,4299.2,4299.1,7.22357638]
[1755837211742,1.12968654,4299.2,4299.1,3.26957638]
[1755837211928,1.12968654,4299.2,4299.1,7.22357638]
[1755837212133,0.36608654,4299.2,4299.1,7.22357638]
[1755837212560,0.68018654,4299.2,4299.1,7.22357638]
[1755837213632,0.68018654,4299.2,4299.1,11.52841769]
[1755837213633,0.36608654,4299.2,4299.1,11.52841769]
[1755837213871,0.002,4299.2,4299.1,11.97921769]
[1755837214439,1e-08,4299.2,4299.1,11.97921769]
[1755837214955,1e-08,4299.8,4299.7,5.98574365]
[1755837215151,1e-08,4299.8,4299.7,12.02554365]
[1755837215355,1e-08,4299.8,4299.7,14.35401624]
[1755837215858,1e-08,4299.8,4299.7,14.44723424]
[1755837217183,0.022,4300.8,4299.7,12.12149059]
[1755837217388,0.022,4300.8,4300.4,12.62054729]
[1755837217591,0.022,4300.8,4300.5,3.66]
[1755837217881,0.022,4300.8,4300.7,6.28300287]
[1755837218269,0.002,4301.7,4301.0,2.32500791]
[1755837218583,0.002,4301.7,4301.2,12.90521478]
[1755837218946,0.002,4301.7,4301.2,13.36901478]
[1755837219386,0.002,4301.7,4301.2,13.48501478]
[1755837219569,0.002,4301.7,4301.2,15.78701652]
[1755837220150,1e-08,4301.3,4301.2,15.78701652]
[1755837221983,1e-08,4301.3,4301.2,27.92122752]
[1755837222571,1e-08,4301.8,4301.7,5.98466234]
[1755837222772,1e-08,4301.8,4301.7,22.40042055]
[1755837223074,1e-08,4301.8,4301.7,24.64195218]
[1755837224153,1e-08,4302.3,4302.2,2.98439217]
[1755837224491,0.002,4302.7,4302.2,2.98439217]
[1755837224492,1e-08,4302.7,4302.6,5.98417607]
[1755837224691,0.38373521,4303.8,4303.7,5.98358203]
[1755837224852,0.38373521,4303.8,4303.7,16.85486424]
[1755837225050,0.02,4303.8,4303.7,18.95161625]
[1755837225489,0.02,4303.8,4303.7,19.39581625]
[1755837226351,0.02,4303.8,4303.7,12.76063404]
[1755837229262,0.022,4303.8,4303.7,12.76063404]
[1755837229664,0.022,4303.8,4303.7,12.47553404]
[1755837230192,0.3148,4303.8,4303.7,12.47553404]
[1755837231569,0.022,4303.8,4303.7,12.47553404]
[1755837231758,0.022,4303.8,4303.7,12.76063404]
[1755837233100,0.022,4303.8,4303.7,17.51443404]
[1755837233269,0.022,4303.8,4303.7,17.63043404]
[1755837234312,0.022,4303.8,4303.7,17.16663404]
[1755837235208,0.759,4303.8,4303.7,12.47153404]
[1755837235502,0.3148,4303.8,4303.7,3.4442]
[1755837235664,0.759,4303.8,4303.7,4.3912]
[1755837235868,0.759,4303.8,4303.7,0.4442]
[1755837239074,1.12271088,4303.8,4303.7,0.4442]
[1755837240291,1.12271088,4303.8,4303.7,7.3902]
[1755837240871,1.12271088,4303.8,4303.7,3.4442]
[1755837241077,1.12271088,4303.8,4303.7,0.4442]
[1755837243805,0.67851088,4303.8,4303.7,0.4442]
[1755837244181,1.12271088,4303.8,4303.7,1.18312]
[1755837244618,1.12271088,4303.8,4303.7,0.4442]
[1755837245779,1.14594795,4303.8,4303.7,0.4442]
[1755837245985,2.56923707,4303.8,4303.7,0.4442]
[1755837247101,0.3148,4303.8,4303.7,0.4442]
[1755837247305,0.759,4303.8,4303.7,0.4442]
[1755837247609,0.022,4303.8,4303.7,0.4442]
[1755837247989,0.022,4303.8,4303.7,0.7293]
[1755837248211,0.022,4303.8,4303.7,1.33459271]
[1755837248394,0.022,4303.8,4303.7,4.04949271]
[1755837248586,0.7772,4303.8,4303.7,3.4442]
[1755837249019,0.3284,4303.8,4303.7,3.4442]
[1755837249813,0.69211218,4303.8,4303.7,3.4442]
[1755837253444,0.38571218,4303.8,4303.7,3.4442]
[1755837253754,0.69211218,4303.8,4303.7,3.4442]
[1755837254112,1.14091218,4303.8,4303.7,3.4442]
[1755837254314,1.14091218,4303.8,4303.7,0.4442]
[1755837254509,0.7772,4303.8,4303.7,0.4442]
[1755837255013,0.7772,4303.8,4302.4,3.944]
[1755837255014,0.80043707,4303.8,4302.4,3.944]
[1755837255262,14.99258557,4303.4,4302.3,0.001]
[1755837255556,0.02323707,4303.3,4302.7,0.698939]
[1755837255761,0.3064,4302.8,4302.7,0.698939]
[1755837255915,0.7552,4302.8,4302.7,0.698939]
[1755837257248,0.77843707,4302.8,4302.7,0.698939]
[1755837257416,0.77843707,4302.8,4302.3,0.001]
[1755837257618,0.4488,4302.7,4302.4,0.698939]
[1755837257927,0.7552,4302.7,4302.3,0.001]
[1755837258927,0.77843707,4302.7,4302.3,0.001]
[1755837259126,0.77843707,4302.7,4302.5,0.093205]
[1755837259715,0.77843707,4302.7,4302.3,0.001]
[1755837259952,30.77843707,4302.7,4302.3,0.001]
[1755837260261,34.3928,4302.6,4302.3,0.001]
[1755837260470,0.3064,4302.4,4302.3,0.001]
[1755837260919,0.7552,4302.4,4302.3,0.001]
[1755837263531,4.7002,4302.4,4302.3,0.001]
[1755837266238,4.7002,4302.4,4302.1,0.001]
[1755837266438,14.99258557,4302.2,4302.1,0.001]
[1755837266753,15.29898557,4302.2,4302.1,0.001]
[1755837266966,15.74778557,4302.2,4302.1,0.001]
[1755837268042,19.69278557,4302.2,4302.1,0.001]
[1755837269251,15.74778557,4302.2,4302.1,0.001]
[1755837269440,19.69278557,4302.2,4302.1,0.001]
[1755837269843,19.69278557,4302.2,4301.7,0.001]
[1755837270153,2.26003707,4302.1,4301.7,0.001]
[1755837270336,0.3064,4301.8,4301.7,0.001]
[1755837270531,4.2514,4301.8,4301.7,0.001]
[1755837270750,4.72343707,4301.8,4301.7,0.001]
[1755837270945,4.7002,4301.8,4301.7,0.001]
[1755837271265,5.06416976,4301.8,4301.7,0.001]
[1755837276469,0.36396976,4301.8,4301.7,0.2966]
[1755837276771,4.7002,4301.8,4301.7,0.001]
[1755837278034,4.6968,4301.8,4301.7,0.001]
[1755837278235,4.6968,4301.8,4301.2,0.001]
[1755837278441,6.63791198,4301.3,4299.8,0.02]
[1755837278776,6.93901198,4300.9,4299.8,0.02]
[1755837278965,10.88401198,4300.9,4299.8,0.02]
[1755837279365,11.32941198,4300.9,4299.8,0.02]
[1755837279944,11.69347253,4300.9,4299.8,0.02]
[1755837280341,19.40607498,4300.9,4299.8,0.02]
[1755837281173,14.35051443,4300.2,4299.8,0.02]
[1755837281357,5.75723707,4300.1,4299.8,0.02]
[1755837281659,0.3011,4299.9,4299.8,0.02]
[1755837281996,3.96823707,4299.9,4299.8,0.02]
[1755837282168,3.96823707,4299.9,4299.8,0.3181]
[1755837287902,4.2461,4299.9,4299.8,0.02]
[1755837288182,4.71473707,4299.9,4299.8,0.02]
[1755837288391,4.2461,4299.9,4299.8,0.02]
[1755837288557,4.26933707,4299.9,4299.8,0.02]
[1755837291485,4.71473707,4299.9,4299.8,0.02]
[1755837291689,4.6915,4299.9,4299.8,0.02]
[1755837292062,4.6915,4299.9,4299.3,0.001]
[1755837292063,0.66,4299.7,4299.3,0.001]
[1755837292262,14.65161443,4299.4,4299.3,0.001]
[1755837292462,4.2461,4299.4,4299.3,0.001]
[1755837292661,0.76973707,4299.4,4299.3,0.001]
[1755837292891,4.71473707,4299.4,4299.3,0.001]
[1755837293092,5.0556945,4299.4,4299.3,0.001]
[1755837295489,4.6915,4299.4,4299.3,0.001]
[1755837295879,5.05570016,4299.4,4298.9,0.001]
[1755837296084,2.25863707,4299.3,4298.9,0.001]
[1755837296388,0.3011,4299.0,4298.9,0.001]
[1755837296588,4.26933707,4299.0,4298.9,0.001]
[1755837296788,4.71473707,4299.0,4298.9,0.001]
[1755837296989,4.6915,4299.0,4298.9,0.001]
[1755837297409,3.945,4299.0,4298.9,0.2991]
[1755837297570,0.02323707,4299.0,4298.9,0.2991]
[1755837297770,3.96823707,4299.0,4298.9,0.2991]
[1755837297971,3.96823707,4299.0,4298.9,0.001]
[1755837298871,4.26933707,4299.0,4298.9,0.001]
[1755837300375,10.91229632,4299.0,4298.9,0.001]
[1755837300675,10.58795925,4299.0,4298.9,0.001]
[1755837300887,11.33445925,4299.0,4298.9,0.001]
[1755837301306,10.88905925,4299.0,4298.9,0.001]
[1755837302502,10.58795925,4299.0,4298.9,0.001]
[1755837302890,10.88905925,4299.0,4298.9,0.001]
[1755837303096,11.33445925,4299.0,4298.9,0.001]
[1755837305005,10.88905925,4299.0,4298.9,0.001]
[1755837305712,10.58795925,4299.0,4298.9,0.2991]
[1755837306306,10.58795925,4299.0,4298.9,0.7605]
[1755837306674,10.58795925,4299.0,4298.9,0.2991]
[1755837306909,11.33445925,4299.0,4298.9,0.001]
[1755837308986,30.0,4298.9,4298.4,0.001]
[1755837309210,6.94305925,4298.5,4298.4,0.001]
[1755837309396,12.67805925,4298.5,4298.4,0.001]
[1755837309786,13.14955925,4298.5,4298.4,0.001]
[1755837312112,13.51381502,4298.5,4298.4,0.001]
[1755837316088,13.04231502,4298.5,4298.4,0.001]
[1755837316720,13.47291502,4298.5,4298.4,0.001]
[1755837317396,12.74221502,4298.5,4298.4,0.3139]
[1755837317605,8.79721502,4298.5,4298.4,0.7479]
[1755837317797,12.74221502,4298.5,4298.4,0.7479]
[1755837318628,2.15425577,4298.5,4298.4,0.7479]
[1755837318806,2.17749284,4298.5,4298.4,0.7479]
[1755837319210,6.12249284,4298.5,4298.4,0.7479]
[1755837319411,2.15425577,4298.5,4298.4,0.7479]
[1755837319721,4.30925577,4298.5,4298.4,0.7479]
[1755837321001,0.36425577,4298.5,4298.4,0.7479]
[1755837321297,4.30925577,4298.5,4298.4,0.7479]
[1755837321724,0.36425577,4298.5,4298.4,0.7479]
[1755837321892,4.30925577,4298.5,4298.4,0.7479]
[1755837322220,0.36425577,4298.5,4298.4,6.38199199]
[1755837322422,0.36425577,4298.5,4298.4,7.04199199]
[1755837322815,0.36425577,4298.5,4298.4,7.74148299]
[1755837324004,5.735,4299.2,4299.1,2.32606824]
[1755837324191,0.002,4299.3,4299.1,0.7469]
[1755837324394,0.002,4299.3,4299.2,0.63289271]
[1755837324594,0.002,4299.3,4299.2,7.36580685]
[1755837324829,0.36609636,4299.3,4299.2,7.34254671]
[1755837325015,0.002,4299.3,4299.2,7.34254671]
[1755837328239,0.002,4299.3,4299.2,13.98550596]
[1755837329728,0.002,4299.3,4299.2,14.34952596]
[1755837330741,0.002,4300.2,4299.7,2.98574365]
[1755837330950,0.002,4300.2,4299.7,13.49601635]
[1755837331151,0.002,4300.2,4299.7,13.47275892]
[1755837331450,0.002,4300.2,4299.7,13.90675892]
[1755837331650,1e-08,4299.8,4299.7,13.90675892]
[1755837331950,1e-08,4299.8,4299.7,14.02275892]
[1755837332136,1e-08,4299.8,4299.7,23.92608992]
[1755837332334,1e-08,4300.2,4300.1,5.98552731]
[1755837332520,1e-08,4300.2,4300.1,15.86249932]
[1755837332726,1e-08,4300.2,4300.1,16.41249932]
[1755837333861,1e-08,4300.2,4300.1,17.11152732]
[1755837334159,1e-08,4300.2,4300.1,21.05352732]
[1755837335061,1e-08,4300.2,4300.1,14.29456807]
[1755837335633,1e-08,4300.2,4300.1,13.63456807]
[1755837336122,1e-08,4300.2,4300.1,14.29456807]
[1755837336327,1e-08,4300.2,4300.1,13.86056807]
[1755837336528,1e-08,4300.2,4300.1,13.20056807]
[1755837336864,0.30010001,4300.2,4300.1,0.699028]
[1755837337158,0.77160001,4300.2,4300.1,0.699028]
[1755837338952,1.13561476,4300.2,4300.1,0.699028]
[1755837339258,0.66411476,4300.2,4300.1,0.699028]
[1755837340347,0.36401476,4300.2,4300.1,1.646028]
[1755837340558,0.36401476,4300.2,4300.1,2.96995603]
[1755837340760,0.36401476,4300.2,4300.1,5.29548334]
[1755837341438,0.36401476,4300.2,4300.1,2.96995603]
[1755837341636,0.36401476,4300.2,4300.1,5.29548334]
[1755837342033,1.12901476,4300.2,4300.1,0.699028]
[1755837345864,0.65811476,4300.2,4300.1,0.699028]
[1755837346434,1.12901476,4300.2,4300.1,0.699028]
[1755837347478,0.36401476,4300.2,4300.1,6.31155531]
[1755837347643,0.36401476,4300.2,4300.1,7.40315531]
[1755837347849,1e-08,4300.2,4300.1,8.37603184]
[1755837354635,1e-08,4300.2,4300.1,7.94443184]
[1755837355072,0.29410001,4300.2,4300.1,0.699028]
[1755837355373,0.76500001,4300.2,4300.1,0.699028]
[1755837355970,0.76500001,4300.2,4299.2,3.0]
[1755837356179,0.76500001,4300.2,4299.1,6.26605715]
[1755837356180,0.49413707,4300.1,4299.1,0.001]
[1755837356382,0.2941,4299.2,4299.1,0.001]
[1755837356883,0.765,4299.2,4299.1,0.495137]
[1755837358161,0.765,4299.2,4299.1,0.001]
[1755837360552,0.2941,4299.2,4299.1,0.001]
[1755837363293,1.789,4299.7,4299.1,3.288]
[1755837363492,1.789,4299.7,4299.1,3.90102438]
[1755837363797,1.789,4299.7,4299.1,0.90102438]
[1755837363965,1.789,4299.7,4299.1,0.288]
[1755837364792,0.02323707,4299.6,4299.1,0.001]
[1755837365197,0.2941,4299.2,4299.1,0.001]
[1755837365600,0.765,4299.2,4299.1,0.001]
[1755837370070,4.72723707,4299.2,4299.1,0.001]
[1755837370287,4.704,4299.2,4299.1,0.001]
[1755837371305,0.765,4299.2,4299.1,0.001]
[1755837371469,0.7506,4299.2,4299.1,0.001]
[1755837371665,3.939,4299.5,4299.1,0.001]
[1755837371870,0.02323707,4299.4,4299.1,0.2926]
[1755837372084,0.02323707,4299.4,4299.1,0.001]
[1755837372672,3.96223707,4299.6,4299.1,0.001]
[1755837373073,4.41873707,4299.6,4299.1,0.001]
[1755837373510,0.36412879,4299.5,4299.1,0.001]
[1755837373692,0.36412879,4299.5,4299.4,0.2916]
[1755837374326,0.36412879,4299.5,4299.4,3.2916]
[1755837374525,0.36412879,4299.5,4299.4,7.33030033]
[1755837374818,3.94,4300.0,4299.8,2.32567881]
[1755837374976,3.94,4300.0,4299.9,3.2916]
[1755837376708,0.36405101,4300.1,4299.9,0.2916]
[1755837377008,0.36405101,4300.1,4300.0,2.32558139]
[1755837377208,0.36405101,4300.1,4300.0,5.32558139]
[1755837377402,0.36405101,4300.1,4300.0,3.0]
[1755837378203,0.36405101,4300.1,4300.0,5.61718139]
[1755837378502,0.36405101,4300.1,4300.0,6.48139722]
[1755837379211,0.36405101,4300.1,4300.0,4.15581583]
[1755837379407,0.36405101,4300.1,4300.0,3.2916]
[1755837379784,0.36405101,4300.1,4300.0,5.61718139]
[1755837379997,0.36405101,4300.1,4300.0,6.06348139]
[1755837380906,0.36405101,4300.1,4300.0,3.7379]
[1755837381105,0.36405101,4300.1,4300.0,3.2916]
[1755837381405,0.36405101,4300.1,4300.0,6.24883585]
[1755837381904,0.36405101,4300.1,4300.0,6.69513585]
[1755837383710,0.36405101,4300.1,4300.0,7.35513585]
[1755837384204,0.002,4300.7,4300.1,5.98552731]
[1755837384410,0.36398325,4300.6,4300.1,6.72342731]
[1755837384612,0.36398325,4300.6,4300.1,7.99398316]
[1755837384992,0.002,4300.7,4300.1,7.99398316]
[1755837385491,0.002,4300.7,4300.1,1.93055585]
[1755837385696,0.30910001,4300.2,4300.0,0.699216]
[1755837386010,1e-08,4300.2,4300.1,3.0]
[1755837386212,0.30910001,4300.2,4300.1,3.0]
[1755837386814,0.76560001,4300.2,4300.1,3.0]
[1755837387127,0.30910001,4300.2,4300.1,3.0]
[1755837387492,0.76560001,4300.2,4300.1,3.0]
[1755837389914,1.12962398,4300.2,4300.1,3.0]
[1755837391617,2.91862398,4300.2,4299.2,3.0]
[1755837391918,0.47973707,4300.1,4299.3,0.699479]
[1755837392089,0.3091,4299.4,4299.3,0.699479]
[1755837392414,0.3091,4299.4,4298.8,5.34621074]
[1755837392620,0.3091,4299.4,4298.8,2.34621074]
[1755837392822,0.67321413,4299.4,4298.8,2.34621582]
[1755837393322,0.67321413,4299.4,4298.8,3.02]
[1755837393527,0.36411413,4299.4,4299.3,5.61756004]
[1755837393695,0.36411413,4299.4,4299.3,6.27756004]
[1755837394021,0.36411413,4299.4,4299.3,6.72386004]
[1755837394648,1.78900001,4300.2,4300.1,2.32552731]
[1755837394922,1.78900001,4300.2,4299.3,4.3979]
[1755837394923,0.76560001,4300.2,4299.8,0.66]
[1755837395124,0.76560001,4300.2,4299.1,0.23582158]
[1755837395423,0.47973707,4300.1,4299.2,3.0]
[1755837395623,0.47973707,4300.1,4299.9,0.699429]
[1755837395824,0.3091,4300.0,4299.9,0.699429]
[1755837396231,1e-08,4300.2,4299.9,0.991029]
[1755837396600,1e-08,4300.2,4299.9,0.699429]
[1755837397500,0.3091,4300.0,4299.9,0.699429]
[1755837398004,0.02323708,4300.2,4299.9,0.699429]
[1755837398524,0.3143,4300.0,4299.9,0.699429]
[1755837398923,0.02323708,4300.2,4299.9,0.699429]
[1755837399098,0.3143,4300.0,4299.9,0.699429]
[1755837399293,0.67834355,4300.0,4299.9,0.699429]
[1755837399498,0.36404355,4300.0,4299.9,0.699429]
[1755837401049,0.67834355,4300.0,4299.9,0.699429]
[1755837402314,1.14064355,4300.0,4299.9,0.699429]
[1755837402549,1.14064355,4300.0,4299.3,0.001]
[1755837402754,0.48553707,4299.9,4299.3,0.001]
[1755837402969,0.3143,4299.4,4299.3,0.001]
[1755837403614,1.78900001,4300.2,4299.3,0.5368118]
[1755837403819,1.78900001,4300.2,4299.4,3.66]
[1755837404151,1.78900001,4300.2,4300.1,0.303]
[1755837404551,0.36402021,4300.1,4299.7,0.66]
[1755837405243,0.36402021,4300.1,4299.8,5.32563917]
[1755837405423,0.36402021,4300.1,4299.9,3.56989289]